fUSD/lending_fUSD_20240105
["ID","MTS","AMOUNT","RATE_DAILY","PERIOD"]
[310256691,1704424290105,-500.0,0.00036712,3]
[310256692,1704424290114,-523.05,0.00036712,3]
[310256693,1704424290123,-569.6,0.00036712,3]
[310256694,1704424290132,-276.19788171,0.00036712,3]
[310256695,1704424290141,-500.0,0.00036712,3]
[310256696,1704424290150,-537.11174093,0.00036712,3]
[310256697,1704424290160,-500.0,0.00036712,3]
[310256698,1704424290169,-500.0,0.00036712,3]
[310256699,1704424290178,-500.0,0.00036712,3]
[310256700,1704424290188,-1578.13,0.00036712,3]
[310256701,1704424290197,-869.26,0.00036712,3]
[310256702,1704424290206,-500.0,0.00036712,3]
[310256703,1704424290215,-500.0,0.00036712,3]
[310256704,1704424290224,-500.0,0.00036712,3]
[310256705,1704424290233,-500.0,0.00036712,3]
[310256706,1704424290242,-500.0,0.00036712,3]
[310256707,1704424290252,-601.34,0.00036712,3]
[310256708,1704424290262,-602.04,0.00036712,3]
[310256709,1704424290272,-547.46454316,0.00036712,3]
[310256710,1704424290281,-279.12172371,0.00036712,3]
[310256711,1704424290291,-500.0,0.00036712,3]
[310256712,1704424290301,-500.0,0.00036712,3]
[310256713,1704424290310,-400.49466504,0.00036712,3]
[310256714,1704424290320,-500.0,0.00036712,3]
[310256715,1704424290329,-500.0,0.00036712,3]
[310256716,1704424290339,-559.1,0.00036712,3]
[310256717,1704424290351,-500.0,0.00036712,3]
[310256718,1704424290360,-500.0,0.00036712,3]
[310256719,1704424290369,-500.0,0.00036712,3]
[310256720,1704424290379,-248.42479597,0.00036712,3]
[310256721,1704424290389,-500.0,0.00036712,3]
[310256722,1704424290398,-500.0,0.00036712,3]
[310256723,1704424290408,-500.0,0.00036712,3]
[310256724,1704424290417,-500.0,0.00036712,3]
[310256725,1704424290427,-500.0,0.00036712,3]
[310256726,1704424290436,-500.0,0.00036712,3]
[310256727,1704424290446,-4769.97,0.00036712,3]
[310256728,1704424290455,-500.0,0.00036712,3]
[310256729,1704424290466,-565.17,0.00036712,3]
[310256730,1704424290475,-500.0,0.00036712,3]
[310256731,1704424290485,-500.0,0.00036712,3]
[310256732,1704424290495,-571.95533875,0.00036712,3]
[310256733,1704424290505,-2681.68,0.00036712,3]
[310256734,1704424290515,-3006.36,0.00036712,3]
[310256735,1704424290524,-500.0,0.00036712,3]
[310256736,1704424290533,-500.0,0.00036712,3]
[310256737,1704424290543,-774.17,0.00036712,3]
[310256738,1704424290553,-500.0,0.00036712,3]
[310256739,1704424290563,-500.0,0.00036712,3]
[310256740,1704424290572,-500.0,0.00036712,3]
[310256741,1704424290582,-776.16,0.00036712,3]
[310256742,1704424290591,-535.51946148,0.00036712,3]
[310256743,1704424290602,-1909.11,0.00036712,3]
[310256744,1704424290612,-1238.67,0.00036712,3]
[310256745,1704424290621,-529.17,0.00036712,3]
[310256746,1704424290630,-500.0,0.00036712,3]
[310256747,1704424290640,-3090.15,0.00036712,3]
[310256748,1704424290649,-500.0,0.00036712,3]
[310256749,1704424290658,-500.0,0.00036712,3]
[310256750,1704424290666,-5012.71,0.00036712,3]
[310256751,1704424290676,-500.0,0.00036712,3]
[310256752,1704424290684,-500.0,0.00036712,3]
[310256753,1704424290693,-1857.63,0.00036712,3]
[310256754,1704424290703,-4528.66,0.00036712,3]
[310256755,1704424290713,-500.0,0.00036712,3]
[310256756,1704424290722,-704.83,0.00036712,3]
[310256757,1704424290733,-1953.12,0.00036712,3]
[310256758,1704424290742,-2812.81,0.00036712,3]
[310256759,1704424290752,-500.0,0.00036712,3]
[310256760,1704424290761,-500.0,0.00036712,3]
[310256761,1704424290771,-778.9,0.00036712,3]
[310256762,1704424290780,-1569.53,0.00036712,3]
[310256763,1704424290789,-500.0,0.00036712,3]
[310256764,1704424290799,-1388.55,0.00036712,3]
[310256765,1704424290809,-500.0,0.00036712,3]
[310256766,1704424290818,-500.0,0.00036712,3]
[310256767,1704424290827,-500.0,0.00036712,3]
[310256768,1704424290836,-535.2837952,0.00036712,3]
[310256769,1704424290846,-530.48509495,0.00036712,3]
[310256770,1704424290856,-971.61,0.00036712,3]
[310256771,1704424290866,-2118.07,0.00036712,3]
[310256772,1704424290875,-500.0,0.00036712,3]
[310256773,1704424290885,-500.0,0.00036712,3]
[310256774,1704424290894,-1026.23,0.00036712,3]
[310256775,1704424290904,-500.0,0.00036712,3]
[310256776,1704424290914,-528.77,0.00036712,3]
[310256777,1704424290924,-747.51,0.00036712,3]
[310256778,1704424290934,-500.0,0.00036712,3]
[310256779,1704424290946,-500.0,0.00036712,3]
[310256780,1704424290956,-1231.35,0.00036712,3]
[310256781,1704424290965,-500.0,0.00036712,3]
[310256782,1704424290975,-1256.48,0.00036712,3]
[310256783,1704424290985,-500.0,0.00036712,3]
[310256784,1704424290995,-407.20997106,0.00036712,3]
[310256785,1704424291004,-2582.67,0.00036712,3]
[310256786,1704424291013,-1321.69,0.00036712,3]
[310256787,1704424291024,-985.31,0.00036712,3]
[310256788,1704424291033,-500.0,0.00036712,3]
[310256789,1704424291042,-804.83,0.00036712,3]
[310256790,1704424291054,-672.09,0.00036712,3]
[310256791,1704424291063,-513.95853793,0.00036712,3]
[310256792,1704424291073,-500.0,0.00036712,3]
[310256793,1704424291083,-500.0,0.00036712,3]
[310256794,1704424291093,-1836.89,0.00036712,3]
[310256795,1704424291104,-500.0,0.00036712,3]
[310256796,1704424291114,-1010.49,0.00036712,3]
[310256797,1704424291124,-531.26935055,0.00036712,3]
[310256798,1704424291133,-500.0,0.00036712,3]
[310256799,1704424291142,-762.87,0.00036712,3]
[310256800,1704424291152,-500.0,0.00036712,3]
[310256801,1704424291162,-786.79,0.00036712,3]
[310256802,1704424291171,-5862.64,0.00036712,3]
[310256803,1704424291181,-1785.52,0.00036712,3]
[310256804,1704424291190,-500.0,0.00036712,3]
[310256805,1704424291200,-934.12,0.00036712,3]
[310256806,1704424291209,-500.0,0.00036712,3]
[310256807,1704424291219,-500.0,0.00036712,3]
[310256808,1704424291228,-912.64,0.00036712,3]
[310256809,1704424291238,-808.85,0.00036712,3]
[310256810,1704424291247,-882.36,0.00036712,3]
[310256811,1704424291256,-1259.24,0.00036712,3]
[310256812,1704424291265,-13869.62,0.00036712,3]
[310256813,1704424291275,-500.0,0.00036712,3]
[310256814,1704424291284,-500.0,0.00036712,3]
[310256815,1704424291293,-500.0,0.00036712,3]
[310256816,1704424291303,-3101.88,0.00036712,3]
[310256817,1704424291313,-500.0,0.00036712,3]
[310256818,1704424291323,-1091.42,0.00036712,3]
[310256819,1704424291332,-785.92,0.00036712,3]
[310256820,1704424291342,-586.04,0.00036712,3]
[310256821,1704424291353,-500.0,0.00036712,3]
[310256822,1704424291363,-500.0,0.00036712,3]
[310256823,1704424291373,-1268.16,0.00036712,3]
[310256824,1704424291383,-531.58391835,0.00036712,3]
[310256825,1704424291393,-202.22774678,0.00036712,3]
[310256826,1704424291402,-1189.46,0.00036712,3]
[310256827,1704424291412,-1481.99,0.00036712,3]
[310256828,1704424291423,-606.27,0.00036712,3]
[310256829,1704424291562,-593.38,0.00036712,3]
[310256830,1704424291573,-500.0,0.00036712,3]
[310256831,1704424291582,-500.0,0.00036712,3]
[310256832,1704424291592,-556.20052165,0.00036712,3]
[310256833,1704424291605,-1085.76,0.00036712,3]
[310256834,1704424291614,-1106.51,0.00036712,3]
[310256835,1704424291624,-500.0,0.00036712,3]
[310256836,1704424291633,-500.0,0.00036712,3]
[310256837,1704424291643,-500.0,0.00036712,3]
[310256838,1704424291652,-1351.81,0.00036712,3]
[310256839,1704424291662,-500.0,0.00036712,3]
[310256840,1704424291672,-500.0,0.00036712,3]
[310256841,1704424291682,-500.0,0.00036712,3]
[310256842,1704424291692,-500.0,0.00036712,3]
[310256843,1704424291702,-545.65,0.00036712,3]
[310256844,1704424291713,-500.0,0.00036712,3]
[310256845,1704424291722,-765.09,0.00036712,3]
[310256846,1704424291732,-518.06696503,0.00036712,3]
[310256847,1704424291742,-537.24,0.00036712,3]
[310256848,1704424291752,-500.0,0.00036712,3]
[310256849,1704424291762,-1151.66,0.00036712,3]
[310256850,1704424291771,-500.0,0.00036712,3]
[310256851,1704424291781,-779.5,0.00036712,3]
[310256852,1704424291791,-1306.66,0.00036712,3]
[310256853,1704424291801,-572.88,0.00036712,3]
[310256854,1704424291810,-500.0,0.00036712,3]
[310256855,1704424291820,-500.0,0.00036712,3]
[310256856,1704424291829,-500.0,0.00036712,3]
[310256857,1704424291839,-540.47753036,0.00036712,3]
[310256858,1704424291848,-174.09203801,0.00036712,3]
[310256859,1704424291860,-500.0,0.00036712,3]
[310256860,1704424291869,-8188.31,0.00036712,3]
[310256861,1704424291878,-500.0,0.00036712,3]
[310256862,1704424291888,-500.0,0.00036712,3]
[310256863,1704424291898,-1063.95,0.00036712,3]
[310256864,1704424291907,-500.0,0.00036712,3]
[310256865,1704424291917,-798.53,0.00036712,3]
[310256866,1704424291926,-500.0,0.00036712,3]
[310256867,1704424291935,-500.0,0.00036712,3]
[310256868,1704424291944,-528.36,0.00036712,3]
[310256869,1704424291954,-510.92651385,0.00036712,3]
[310256870,1704424291964,-528.03112269,0.00036712,3]
[310256871,1704424291974,-500.0,0.00036712,3]
[310256872,1704424291983,-920.16,0.00036712,3]
[310256873,1704424291993,-500.0,0.00036712,3]
[310256874,1704424292003,-500.0,0.00036712,3]
[310256875,1704424292013,-500.0,0.00036712,3]
[310256876,1704424292022,-500.0,0.00036712,3]
[310256877,1704424292034,-663.44,0.00036712,3]
[310256878,1704424292044,-500.0,0.00036712,3]
[310256879,1704424292052,-1622.28,0.00036712,3]
[310256880,1704424292063,-500.0,0.00036712,3]
[310256881,1704424292072,-711.28,0.00036712,3]
[310256882,1704424292081,-500.0,0.00036712,3]
[310256883,1704424292090,-500.0,0.00036712,3]
[310256884,1704424292100,-500.0,0.00036712,3]
[310256885,1704424292111,-502.3,0.00036712,3]
[310256886,1704424292121,-2080.27,0.00036712,3]
[310256887,1704424292130,-835.35,0.00036712,3]
[310256888,1704424292139,-481.98054456,0.00036712,3]
[310256889,1704424292148,-500.0,0.00036712,3]
[310256890,1704424292158,-500.0,0.00036712,3]
[310256891,1704424292167,-500.0,0.00036712,3]
[310256892,1704424292177,-2415.78,0.00036712,3]
[310256893,1704424292186,-500.0,0.00036712,3]
[310256894,1704424292196,-558.41,0.00036712,3]
[310256895,1704424292205,-500.0,0.00036712,3]
[310256896,1704424292215,-500.0,0.00036712,3]
[310256897,1704424292225,-500.0,0.00036712,3]
[310256898,1704424292233,-500.0,0.00036712,3]
[310256899,1704424292243,-500.0,0.00036712,3]
[310256900,1704424292252,-500.0,0.00036712,3]
[310256901,1704424292262,-500.0,0.00036712,3]
[310256902,1704424292271,-500.0,0.00036712,3]
[310256903,1704424292281,-500.0,0.00036712,3]
[310256904,1704424292291,-500.0,0.00036712,3]
[310256905,1704424292301,-500.0,0.00036712,3]
[310256906,1704424292310,-542.19,0.00036712,3]
[310256907,1704424292320,-500.0,0.00036712,3]
[310256908,1704424292329,-539.67794839,0.00036712,3]
[310256909,1704424292339,-500.0,0.00036712,3]
[310256910,1704424292349,-500.0,0.00036712,3]
[310256911,1704424292362,-500.0,0.00036712,3]
[310256912,1704424292371,-500.0,0.00036712,3]
[310256913,1704424292381,-1511.27,0.00036712,3]
[310256914,1704424292391,-500.0,0.00036712,3]
[310256915,1704424292401,-4392.23,0.00036712,3]
[310256916,1704424292412,-523.56939694,0.00036712,3]
[310256917,1704424292422,-508.74684559,0.00036712,3]
[310256918,1704424292431,-1318.19,0.00036712,3]
[310256919,1704424292446,-500.0,0.00036712,3]
[310256920,1704424292467,-500.0,0.00036712,3]
[310256921,1704424292484,-500.0,0.00036712,3]
[310256922,1704424292504,-500.0,0.00036712,3]
[310256923,1704424292520,-868.93,0.00036712,3]
[310256924,1704424292538,-529.94687515,0.00036712,3]
[310256925,1704424292556,-1000.0,0.00036756,2]
[310256926,1704424292573,-167.0,0.00036759,2]
[310256927,1704424292591,-3000.0,0.0003677,2]
[310256928,1704424292611,-8248.29,0.000368,7]
[310256929,1704424292629,-13965.33,0.000368,7]
[310256930,1704424292650,-153.81315469,0.00036804,2]
[310256931,1704424292662,-942.43204136,0.00036836,9]
[310256932,1704424292679,-157.40105,0.00036898,2]
[310256933,1704424292694,-500.0,0.00036899,3]
[310256934,1704424292710,-368641.6458,0.000369,5]
[310256935,1704424292725,-154.87,0.00036949,2]
[310256936,1704424292740,-157.16431726,0.0003696,3]
[310256937,1704424292756,-237.25919113,0.0003696,30]
[310256938,1704424292770,-180.69,0.00036986,2]
[310256939,1704424292785,-440.49138624,0.00036986,3]
[310256940,1704424292801,-500.0,0.00036986,3]
[310256941,1704424292816,-500.0,0.00036986,3]
[310256942,1704424292832,-500.0,0.00036986,3]
[310256943,1704424292847,-500.0,0.00036986,2]
[310256944,1704424292864,-500.0,0.00036986,3]
[310256945,1704424292879,-500.0,0.00036986,3]
[310256946,1704424292894,-500.0,0.00036986,3]
[310256947,1704424292909,-500.0,0.00036986,3]
[310256948,1704424292923,-760.75,0.00036986,3]
[310256949,1704424292937,-500.0,0.00036986,3]
[310256950,1704424292953,-518.49920318,0.00036986,3]
[310256951,1704424292968,-534.57859821,0.00036986,3]
[310256952,1704424292983,-500.0,0.00036986,3]
[310256953,1704424292998,-500.0,0.00036986,3]
[310256954,1704424293012,-500.0,0.00036986,3]
[310256955,1704424293027,-583.53,0.00036986,3]
[310256956,1704424293043,-500.0,0.00036986,3]
[310256957,1704424293058,-500.0,0.00036986,3]
[310256958,1704424293072,-293.47547288,0.00036986,3]
[310256959,1704424293087,-536.86492588,0.00036986,3]
[310256960,1704424293103,-500.0,0.00036986,3]
[310256961,1704424293119,-500.0,0.00036986,3]
[310256962,1704424293132,-500.0,0.00036986,3]
[310256963,1704424293146,-500.0,0.00036986,3]
[310256964,1704424293161,-500.0,0.00036986,3]
[310256965,1704424293176,-500.0,0.00036986,3]
[310256966,1704424293191,-500.0,0.00036986,3]
[310256967,1704424293207,-669.12,0.00036986,3]
[310256968,1704424293221,-500.0,0.00036986,3]
[310256969,1704424293236,-500.0,0.00036986,3]
[310256970,1704424293251,-500.0,0.00036986,3]
[310256971,1704424293266,-309.17943738,0.00036986,3]
[310256972,1704424293280,-500.0,0.00036986,3]
[310256973,1704424293296,-500.0,0.00036986,3]
[310256974,1704424293311,-530.89,0.00036986,3]
[310256975,1704424293325,-500.0,0.00036986,3]
[310256976,1704424293340,-500.0,0.00036986,3]
[310256977,1704424293355,-500.0,0.00036986,3]
[310256978,1704424293371,-500.0,0.00036986,3]
[310256979,1704424293385,-500.0,0.00036986,3]
[310256980,1704424293400,-500.0,0.00036986,3]
[310256981,1704424293415,-500.0,0.00036986,3]
[310256982,1704424293430,-500.0,0.00036986,3]
[310256983,1704424293444,-531.0893277,0.00036986,3]
[310256984,1704424293458,-500.0,0.00036986,3]
[310256985,1704424293472,-500.0,0.00036986,3]
[310256986,1704424293487,-529.18206071,0.00036986,3]
[310256987,1704424293501,-500.0,0.00036986,3]
[310256988,1704424293516,-500.0,0.00036986,3]
[310256989,1704424293534,-510.719867,0.00036986,3]
[310256990,1704424293548,-500.0,0.00036986,3]
[310256991,1704424293563,-500.0,0.00036986,3]
[310256992,1704424293577,-413.63244451,0.00036986,3]
[310256993,1704424293591,-376.806727,0.00036986,3]
[310256994,1704424293606,-500.0,0.00036986,3]
[310256995,1704424293620,-500.0,0.00036986,3]
[310256996,1704424293635,-500.0,0.00036986,3]
[310256997,1704424293649,-500.0,0.00036986,3]
[310256998,1704424293664,-500.0,0.00036986,3]
[310256999,1704424293678,-500.0,0.00036986,3]
[310257000,1704424293692,-500.0,0.00036986,3]
[310257001,1704424293707,-500.0,0.00036986,3]
[310257002,1704424293722,-500.0,0.00036986,3]
[310257003,1704424293736,-500.0,0.00036986,3]
[310257004,1704424293750,-500.0,0.00036986,3]
[310257005,1704424293765,-500.0,0.00036986,3]
[310257006,1704424293779,-500.0,0.00036986,3]
[310257007,1704424293795,-621.91324462,0.00036986,3]
[310257008,1704424293983,-500.0,0.00036986,3]
[310257009,1704424293993,-500.0,0.00036986,3]
[310257010,1704424294002,-500.0,0.00036986,3]
[310257011,1704424294011,-500.0,0.00036986,3]
[310257012,1704424294021,-500.0,0.00036986,3]
[310257013,1704424294030,-500.0,0.00036986,3]
[310257014,1704424294039,-500.0,0.00036986,3]
[310257015,1704424294049,-534.64930972,0.00036986,3]
[310257016,1704424294058,-500.0,0.00036986,3]
[310257017,1704424294067,-500.0,0.00036986,3]
[310257018,1704424294076,-500.0,0.00036986,3]
[310257019,1704424294086,-500.0,0.00036986,3]
[310257020,1704424294094,-500.0,0.00036986,3]
[310257021,1704424294103,-388.18487571,0.00036986,3]
[310257022,1704424294115,-500.0,0.00036986,3]
[310257023,1704424294124,-522.40544044,0.00036986,3]
[310257024,1704424294133,-577.99538843,0.00036986,3]
[310257025,1704424294142,-500.0,0.00036986,3]
[310257026,1704424294151,-393.65189244,0.00036986,3]
[310257027,1704424294160,-491.54378638,0.00036986,3]
[310257028,1704424294169,-500.0,0.00036986,3]
[310257029,1704424294178,-500.0,0.00036986,3]
[310257030,1704424294187,-519.7288443,0.00036986,3]
[310257031,1704424294196,-500.0,0.00036986,3]
[310257032,1704424294205,-616.63954812,0.00036986,3]
[310257033,1704424294214,-500.0,0.00036986,3]
[310257034,1704424294223,-515.79127516,0.00036986,3]
[310257035,1704424294232,-556.73390389,0.00036986,3]
[310257036,1704424294242,-500.0,0.00036986,3]
[310257037,1704424294252,-252.40512203,0.00036986,3]
[310257038,1704424294262,-537.17251472,0.00036986,3]
[310257039,1704424294271,-500.0,0.00036986,3]
[310257040,1704424294281,-500.0,0.00036986,3]
[310257041,1704424294290,-537.82435374,0.00036986,3]
[310257042,1704424294299,-500.0,0.00036986,3]
[310257043,1704424294308,-500.0,0.00036986,3]
[310257044,1704424294318,-500.0,0.00036986,3]
[310257045,1704424294328,-500.0,0.00036986,3]
[310257046,1704424294337,-500.0,0.00036986,3]
[310257047,1704424294347,-500.0,0.00036986,3]
[310257048,1704424294358,-500.0,0.00036986,3]
[310257049,1704424294367,-500.0,0.00036986,3]
[310257050,1704424294376,-500.0,0.00036986,3]
[310257051,1704424294385,-629.77746113,0.00036986,3]
[310257052,1704424294395,-421.08242353,0.00036986,3]
[310257053,1704424294404,-500.0,0.00036986,3]
[310257054,1704424294414,-500.0,0.00036986,3]
[310257055,1704424294423,-500.0,0.00036986,3]
[310257056,1704424294434,-500.0,0.00036986,3]
[310257057,1704424294444,-536.37459723,0.00036986,3]
[310257058,1704424294453,-287.66680905,0.00036986,3]
[310257059,1704424294463,-500.0,0.00036986,3]
[310257060,1704424294473,-500.0,0.00036986,3]
[310257061,1704424294483,-954.7,0.00036986,3]
[310257062,1704424294495,-563.51434588,0.00036986,3]
[310257063,1704424294505,-500.0,0.00036986,3]
[310257064,1704424294515,-562.13580396,0.00036986,3]
[310257065,1704424294525,-558.08634853,0.00036986,3]
[310257066,1704424294535,-554.3695512,0.00036986,3]
[310257067,1704424294544,-252.91203427,0.00036986,3]
[310257068,1704424294554,-374.2838451,0.00036986,3]
[310257069,1704424294563,-383.40856612,0.00036986,3]
[310257070,1704424294572,-220.00838574,0.00036986,3]
[310257071,1704424294581,-500.0,0.00036986,3]
[310257072,1704424294591,-500.0,0.00036986,3]
[310257073,1704424294599,-500.0,0.00036986,3]
[310257074,1704424294609,-500.0,0.00036986,3]
[310257075,1704424294618,-500.0,0.00036986,3]
[310257076,1704424294627,-516.99466623,0.00036986,3]
[310257077,1704424294636,-500.0,0.00036986,3]
[310257078,1704424294646,-500.0,0.00036986,3]
[310257079,1704424294655,-500.0,0.00036986,3]
[310257080,1704424294664,-500.0,0.00036986,3]
[310257081,1704424294673,-500.0,0.00036986,3]
[310257082,1704424294683,-500.0,0.00036986,3]
[310257083,1704424294692,-500.0,0.00036986,3]
[310257084,1704424294701,-500.0,0.00036986,3]
[310257085,1704424294710,-310.26866908,0.00036986,3]
[310257086,1704424294720,-500.0,0.00036986,3]
[310257087,1704424294729,-500.0,0.00036986,3]
[310257088,1704424294739,-500.0,0.00036986,3]
[310257089,1704424294748,-500.0,0.00036986,3]
[310257090,1704424294757,-500.0,0.00036986,3]
[310257091,1704424294767,-500.0,0.00036986,3]
[310257092,1704424294776,-500.0,0.00036986,3]
[310257093,1704424294786,-577.37778949,0.00036986,3]
[310257094,1704424294795,-500.0,0.00036986,3]
[310257095,1704424294807,-500.0,0.00036986,3]
[310257096,1704424294817,-500.0,0.00036986,3]
[310257097,1704424294826,-500.0,0.00036986,3]
[310257098,1704424294835,-500.0,0.00036986,3]
[310257099,1704424294844,-500.0,0.00036986,3]
[310257100,1704424294853,-500.0,0.00036986,3]
[310257101,1704424294863,-500.0,0.00036986,3]
[310257102,1704424294872,-500.0,0.00036986,3]
[310257103,1704424294881,-500.0,0.00036986,3]
[310257104,1704424294891,-269.42403999,0.00036986,3]
[310257105,1704424294900,-500.0,0.00036986,3]
[310257106,1704424294909,-500.0,0.00036986,3]
[310257107,1704424294918,-500.0,0.00036986,3]
[310257108,1704424294928,-500.0,0.00036986,3]
[310257109,1704424294937,-500.0,0.00036986,3]
[310257110,1704424294949,-500.0,0.00036986,3]
[310257111,1704424294959,-442.54487856,0.00036986,3]
[310257112,1704424294968,-500.0,0.00036986,3]
[310257113,1704424294977,-500.0,0.00036986,3]
[310257114,1704424294987,-500.0,0.00036986,3]
[310257115,1704424294996,-500.0,0.00036986,3]
[310257116,1704424295005,-500.0,0.00036986,3]
[310257117,1704424295014,-529.70918337,0.00036986,3]
[310257118,1704424295025,-500.0,0.00036986,3]
[310257119,1704424295034,-500.0,0.00036986,3]
[310257120,1704424295043,-500.0,0.00036986,3]
[310257121,1704424295052,-874.14,0.00036986,3]
[310257122,1704424295062,-500.0,0.00036986,3]
[310257123,1704424295071,-500.0,0.00036986,3]
[310257124,1704424295081,-500.0,0.00036986,3]
[310257125,1704424295090,-500.0,0.00036986,3]
[310257126,1704424295100,-500.0,0.00036986,3]
[310257127,1704424295109,-150.0,0.00036986,3]
[310257128,1704424295119,-500.0,0.00036986,3]
[310257129,1704424295128,-500.0,0.00036986,3]
[310257130,1704424295137,-500.0,0.00036986,3]
[310257131,1704424295146,-500.0,0.00036986,3]
[310257132,1704424295155,-544.91823856,0.00036986,3]
[310257133,1704424295165,-500.0,0.00036986,3]
[310257134,1704424295175,-255.44587156,0.00036986,3]
[310257135,1704424295184,-500.53827621,0.00036986,3]
[310257136,1704424295194,-500.0,0.00036986,3]
[310257137,1704424295203,-500.0,0.00036986,3]
[310257138,1704424295213,-500.0,0.00036986,3]
[310257139,1704424295222,-500.0,0.00036986,3]
[310257140,1704424295232,-500.0,0.00036986,3]
[310257141,1704424295241,-500.0,0.00036986,3]
[310257142,1704424295251,-500.0,0.00036986,3]
[310257143,1704424295260,-216.67167641,0.00036986,3]
[310257144,1704424295269,-500.0,0.00036986,3]
[310257145,1704424295279,-500.0,0.00036986,3]
[310257146,1704424295288,-500.0,0.00036986,3]
[310257147,1704424295298,-607.67759368,0.00036986,3]
[310257148,1704424295308,-500.0,0.00036986,3]
[310257149,1704424295317,-616.6254331,0.00036986,3]
[310257150,1704424295328,-532.04506404,0.00036986,3]
[310257151,1704424295338,-500.0,0.00036986,3]
[310257152,1704424295347,-500.0,0.00036986,3]
[310257153,1704424295357,-500.0,0.00036986,3]
[310257154,1704424295368,-500.0,0.00036986,3]
[310257155,1704424295377,-542.61023367,0.00036986,3]
[310257156,1704424295386,-500.0,0.00036986,3]
[310257157,1704424295396,-500.0,0.00036986,3]
[310257158,1704424295405,-500.0,0.00036986,3]
[310257159,1704424295415,-500.0,0.00036986,3]
[310257160,1704424295425,-500.0,0.00036986,3]
[310257161,1704424295434,-500.0,0.00036986,3]
[310257162,1704424295443,-166.69216251,0.00036986,3]
[310257163,1704424295453,-500.0,0.00036986,3]
[310257164,1704424295465,-500.0,0.00036986,3]
[310257165,1704424295474,-517.23443118,0.00036986,3]
[310257166,1704424295484,-500.0,0.00036986,3]
[310257167,1704424295494,-500.0,0.00036986,3]
[310257168,1704424295503,-500.0,0.00036986,3]
[310257169,1704424295513,-500.0,0.00036986,3]
[310257170,1704424295522,-231.49512814,0.00036986,3]
[310257171,1704424295532,-179.03302893,0.00036986,3]
[310257172,1704424295541,-500.0,0.00036986,3]
[310257173,1704424295551,-500.0,0.00036986,3]
[310257174,1704424295560,-500.0,0.00036986,3]
[310257175,1704424295570,-500.0,0.00036986,3]
[310257176,1704424295579,-500.0,0.00036986,3]
[310257177,1704424295588,-500.0,0.00036986,3]
[310257178,1704424295598,-500.0,0.00036986,3]
[310257179,1704424295607,-520.90908653,0.00036986,3]
[310257180,1704424295618,-500.0,0.00036986,3]
[310257181,1704424295627,-593.83,0.00036986,3]
[310257182,1704424295637,-500.0,0.00036986,3]
[310257183,1704424295647,-524.56862772,0.00036986,3]
[310257184,1704424295656,-500.0,0.00036986,3]
[310257185,1704424295666,-3647.06,0.00036986,3]
[310257186,1704424295675,-291.84961711,0.00036986,3]
[310257187,1704424295685,-500.0,0.00036986,3]
[310257188,1704424295694,-500.0,0.00036986,3]
[310257189,1704424295705,-523.05,0.00036986,3]
[310257190,1704424295714,-569.6,0.00036986,3]